bitfinex/quotes_ETHUSD_20260202
["timestamp","ask_amount","ask_price","bid_price","bid_amount"]
[1770000386413,0.0011,2270.4,2269.3,0.13184205]
[1770000386744,0.0011,2270.4,2269.5,1.23340627]
[1770000387044,0.0011,2270.6,2269.9,0.13184205]
[1770000387240,0.0011,2271.0,2270.0,0.13184205]
[1770000387628,4.5334778,2271.9,2270.0,0.13184205]
[1770000387629,1.10028154,2272.2,2270.8,0.13184205]
[1770000387810,1.17590377,2272.2,2271.1,0.13184205]
[1770000388010,15.00319998,2272.6,2271.3,0.13184205]
[1770000388209,1.1000616,2272.6,2271.6,0.13184205]
[1770000388519,1.1000616,2272.6,2271.8,0.13184205]
[1770000388727,1.0999648,2272.8,2271.7,0.13184205]
[1770000388917,1.0999648,2272.8,2271.2,4.53479516]
[1770000388918,14.54550358,2272.7,2270.9,0.13184205]
[1770000389236,13.90313838,2272.6,2271.2,1.10073384]
[1770000389440,13.90313838,2272.6,2271.1,1.23260244]
[1770000389609,13.90313838,2272.3,2270.7,0.13184205]
[1770000389809,4.631,2272.4,2270.4,0.13184205]
[1770000389810,14.82613838,2272.2,2270.6,1.10099473]
[1770000390008,14.82613838,2272.2,2270.2,4.53656466]
[1770000390009,13.90313838,2272.0,2270.2,0.13184205]
[1770000390210,13.90313838,2272.0,2270.4,1.10110057]
[1770000390438,13.90313838,2271.6,2270.3,1.10116867]
[1770000390633,1.10035211,2272.0,2270.7,0.13184205]
[1770000390969,1.10011001,2272.5,2271.2,0.13184205]
[1770000391129,1.94035492,2272.4,2271.4,0.13184205]
[1770000391448,1.74240483,2272.7,2271.8,0.13184205]
[1770000391658,13.90313838,2273.1,2271.8,0.13184205]
[1770000391659,1.09957776,2273.6,2272.2,0.13184205]
[1770000391835,1.09957776,2273.6,2272.3,0.13184205]
[1770000392163,1.09957776,2273.6,2272.2,0.13184205]
[1770000392456,1.09957776,2273.6,2272.6,0.13184205]
[1770000392645,15.00281287,2273.4,2272.0,1.1003482]
[1770000392961,15.00281287,2273.4,2271.6,0.13184205]
[1770000393131,15.00281287,2273.4,2272.0,1.10034577]
[1770000393333,1.74170203,2273.5,2272.3,0.13184205]
[1770000393534,1.09948104,2273.8,2272.4,0.13184205]
[1770000394048,15.00261942,2273.8,2272.0,1.10034577]
[1770000394562,15.00261942,2273.8,2271.6,0.13184205]
[1770000394563,13.90313838,2273.5,2271.6,0.13184205]
[1770000394858,13.90313838,2273.5,2271.9,0.13184205]
[1770000394859,2.02267449,2273.4,2271.9,0.13184205]
[1770000395025,2.02267449,2273.4,2272.2,0.13184205]
[1770000395223,2.03245109,2273.3,2272.2,0.13184205]
[1770000395931,4.39780806,2273.9,2272.3,0.13184205]
[1770000396251,19.22394644,2273.9,2272.1,0.13184205]
[1770000396452,0.1024,2273.7,2272.0,0.13184205]
[1770000396632,1.09967449,2273.4,2271.4,4.53394545]
[1770000396833,2.02267449,2273.4,2272.1,0.13184205]
[1770000397029,0.64213725,2273.3,2271.9,0.13184205]
[1770000397360,23.74595222,2273.1,2271.4,0.13184205]
[1770000397559,13.90313838,2273.0,2271.4,1.10063942]
[1770000397932,0.1024,2272.9,2271.3,0.13184205]
[1770000398155,12.60631651,2272.7,2271.0,0.13184205]
[1770000398355,12.60631651,2272.7,2270.8,0.13184205]
[1770000398356,12.60631651,2272.2,2269.9,13.10942747]
[1770000398562,12.60631651,2272.0,2270.3,0.13184205]
[1770000398753,12.60631651,2272.0,2269.9,0.13184205]
[1770000398754,13.70671705,2271.9,2269.9,0.13184205]
[1770000399063,13.70671705,2271.9,2270.3,1.10116994]
[1770000399263,1.81083192,2271.8,2270.6,0.13184205]
[1770000399559,1.81083192,2271.8,2270.6,0.13284205]
[1770000399866,1.10038291,2272.0,2270.9,0.13184205]
[1770000400166,1.10038291,2272.0,2270.7,0.13184205]
[1770000400362,1.10038291,2272.0,2270.8,0.13184205]
[1770000400564,1.10038291,2272.0,2270.6,0.001]
[1770000400862,1.10044898,2271.8,2270.6,0.001]
[1770000401228,1.10044898,2271.8,2270.7,0.13184205]
[1770000401659,0.6424641,2271.9,2270.7,0.13184205]
[1770000401962,1.35293165,2272.6,2271.4,0.13184205]
[1770000401963,1.10011001,2272.5,2271.4,0.13184205]
[1770000402147,1.10011001,2272.5,2270.2,4.53635226]
[1770000402355,1.10011001,2272.5,2271.2,0.13184205]
[1770000402862,1.0999164,2272.9,2271.7,0.13184205]
[1770000403060,2.02286939,2273.0,2271.9,0.13184205]
[1770000403261,2.02286939,2273.0,2271.6,0.13184205]
[1770000403445,0.64221761,2272.9,2271.8,0.13184205]
[1770000403641,0.64221761,2272.9,2271.5,0.13184205]
[1770000404165,0.64221761,2272.9,2271.6,0.13184205]
[1770000404334,0.64221761,2272.9,2271.5,14.5]
[1770000404537,0.64221761,2272.9,2271.3,1.23253328]
[1770000404731,1.1000132,2272.7,2271.5,1.10059432]
[1770000404972,1.1000132,2272.7,2271.5,1.23243637]
[1770000406170,1.1000132,2272.7,2271.5,1.10059432]
[1770000406667,0.2665087,2272.8,2271.5,1.23243637]
[1770000406846,1.09989551,2273.0,2271.9,0.13184205]
[1770000407642,1.09989551,2273.0,2271.7,1.10049742]
[1770000407643,1.64992488,2273.0,2271.7,1.10049742]
[1770000408878,4.39929814,2273.1,2272.0,0.13184205]
[1770000408879,1.09985301,2273.1,2272.0,0.13184205]
[1770000409077,1.09985301,2273.1,2271.9,1.10040054]
[1770000409441,0.0011,2273.2,2272.2,0.13184205]
[1770000409755,0.0011,2273.4,2272.6,0.13184205]
[1770000409969,0.0011,2273.4,2272.5,0.13184205]
[1770000410291,1.10077964,2273.4,2272.4,0.13184205]
[1770000410442,1.65071365,2273.4,2272.2,0.923]
[1770000410791,1.65071365,2273.4,2272.3,1.10020683]
[1770000411640,0.0011,2273.4,2272.5,0.13184205]
[1770000411994,0.923,2274.2,2272.9,0.13184205]
[1770000412140,1.10029568,2274.4,2273.0,0.923]
[1770000412348,14.56048755,2274.4,2272.9,0.923]
[1770000412642,0.54970597,2274.3,2272.7,0.922]
[1770000412842,14.55947953,2274.2,2272.8,1.0999648]
[1770000413067,0.922,2274.1,2272.6,1.10003147]
[1770000413269,14.38219187,2274.1,2272.7,1.09999142]
[1770000413446,1.54814795,2274.0,2272.7,1.09999142]
[1770000413644,1.54814795,2274.0,2272.7,1.10000901]
[1770000413843,1.54814795,2274.0,2272.7,1.09999452]
[1770000414279,1.54814795,2274.0,2272.7,1.23183657]
[1770000414451,1.09926663,2274.3,2273.0,0.13184205]
[1770000414647,1.09926663,2274.3,2272.7,1.23183657]
[1770000414843,0.0011,2274.4,2272.9,1.23175845]
[1770000415252,0.0011,2274.4,2272.9,2.0219164]
[1770000415654,0.0011,2274.4,2272.9,2.15375845]
[1770000415947,0.0011,2274.4,2272.9,1.23175845]
[1770000416268,0.0011,2274.4,2272.9,1.0999164]
[1770000416845,0.0011,2274.4,2272.7,5.45350767]
[1770000416846,0.13184205,2274.3,2272.0,17.90789617]
[1770000417190,13.59203392,2274.2,2272.7,1.1000052]
[1770000417477,1.3723876,2274.1,2272.7,1.1000052]
[1770000418860,1.09938434,2274.0,2272.6,4.40022938]
[1770000419989,1.09938434,2274.0,2272.6,4.53207143]
[1770000420487,4.39718619,2274.2,2272.8,0.13184205]
[1770000420687,14.00994926,2274.2,2272.6,1.1000616]
[1770000420887,13.46019187,2273.6,2272.4,0.13184205]
[1770000421089,0.13184205,2273.2,2271.5,1.10058853]
[1770000421390,14.51403392,2273.5,2271.6,0.55040292]
[1770000421595,14.51403392,2273.5,2271.4,4.40344067]
[1770000421596,13.59203392,2272.9,2271.4,0.001]
[1770000421775,0.13184205,2273.2,2271.5,1.10058709]
[1770000422080,13.46019187,2273.4,2271.5,1.10058709]
[1770000422380,13.46019187,2273.4,2271.9,0.13184205]
[1770000422681,13.46019187,2273.4,2271.6,0.13184205]
[1770000422890,1.09977124,2273.2,2271.8,1.23229103]
[1770000423088,1.09977124,2273.2,2271.8,1.10044898]
[1770000423306,14.55996311,2273.2,2271.4,0.001]
[1770000423581,13.46019187,2272.8,2271.4,0.001]
[1770000423877,14.95123731,2272.7,2271.4,0.001]
[1770000424488,14.95123731,2272.7,2269.5,0.13184205]
[1770000424489,13.46019187,2271.5,2269.5,0.13184205]
[1770000424653,23.30300571,2270.9,2269.4,0.001]
[1770000424853,1.10098207,2270.7,2269.4,0.001]
[1770000425054,0.13184205,2271.1,2269.4,0.001]
[1770000425269,0.13184205,2270.8,2269.4,0.001]
[1770000425476,0.13184205,2270.7,2269.4,0.001]
[1770000425751,0.13184205,2270.5,2269.4,0.001]
[1770000425961,0.13184205,2270.4,2269.4,0.001]
[1770000426184,0.13184205,2270.3,2269.4,0.001]
[1770000426381,0.13184205,2270.2,2269.4,0.001]
[1770000426780,1.1011463,2270.4,2269.6,0.001]
[1770000427280,1.6780628,2270.4,2269.6,0.001]
[1770000427881,4.40325693,2271.1,2269.6,0.001]
[1770000428090,1.10073969,2271.2,2269.6,0.001]
[1770000428284,2.02272338,2271.3,2269.6,13.05818943]
[1770000428866,2.02272338,2271.3,2269.7,1.10146715]
[1770000429073,1.74327221,2271.3,2269.7,1.10146715]
[1770000429359,0.13184205,2271.2,2269.7,1.10146715]
[1770000429703,0.13184205,2270.7,2269.6,0.001]
[1770000429863,0.13184205,2270.9,2269.6,1.10251278]
[1770000430064,0.13184205,2270.6,2269.6,0.001]
[1770000430276,0.13184205,2270.3,2269.6,0.001]
[1770000430470,0.13184205,2270.4,2269.6,0.001]
[1770000430659,0.13184205,2270.3,2269.6,0.001]
[1770000430859,1.10125745,2270.2,2269.6,0.001]
[1770000431084,0.13184205,2269.9,2269.6,0.001]
[1770000431582,0.13184205,2269.8,2269.6,0.001]
[1770000431990,0.13184205,2269.8,2269.4,0.001]
[1770000432288,0.13184205,2269.8,2268.6,1.10198675]
[1770000432289,0.13184205,2269.5,2268.6,1.10198675]
[1770000432492,1.05484205,2270.5,2268.6,1.65308908]
[1770000432674,0.13184205,2270.1,2268.6,1.65308908]
[1770000432868,1.2332042,2270.0,2268.6,1.65308908]
[1770000433078,1.10130594,2270.1,2268.6,1.65308908]
[1770000433284,1.10130594,2270.1,2268.4,17.46619436]
[1770000433285,0.13184205,2269.9,2268.4,0.001]
[1770000433586,0.13184205,2269.7,2268.5,1.10204086]
[1770000433767,1.23314799,2270.1,2268.5,1.10204086]
[1770000433768,1.10130594,2270.1,2268.6,1.10199641]
[1770000434370,0.13184205,2270.4,2268.6,1.10199641]
[1770000434371,14.88330547,2270.7,2268.6,14.15918584]
[1770000434570,6.03754291,2270.6,2268.6,14.29102789]
[1770000435007,0.13184205,2270.5,2268.6,14.29102789]
[1770000435199,0.13184205,2270.3,2268.6,14.15918584]
[1770000435493,0.13184205,2270.5,2268.8,13.05718943]
[1770000435890,6.03754291,2270.6,2268.8,13.05718943]
[1770000436195,0.13184205,2270.4,2268.8,13.05718943]
[1770000436695,0.13184205,2270.4,2268.4,0.001]
[1770000436696,0.13184205,2269.9,2268.4,0.001]
[1770000436867,0.13184205,2269.7,2268.6,1.10198014]
[1770000437066,1.10151568,2269.6,2268.6,1.65307865]
[1770000437267,1.10149283,2269.7,2268.6,1.65307865]
[1770000437663,0.13184205,2269.6,2268.5,1.10202063]
[1770000437890,1.10149283,2269.7,2268.6,1.10199892]
[1770000438060,1.23333488,2269.7,2268.6,1.10199892]
[1770000438264,1.10149283,2269.7,2268.6,1.10199892]
[1770000438467,0.13184205,2270.2,2268.6,1.10199892]
[1770000438695,5.10925846,2270.2,2268.7,0.55100594]
[1770000439174,0.13184205,2269.9,2268.8,1.10190409]
[1770000439374,0.13184205,2269.8,2268.7,1.101917]
[1770000439571,0.13184205,2269.7,2268.7,1.10194237]
[1770000439993,0.13184205,2269.8,2268.7,1.10194237]
[1770000440194,0.13184205,2269.8,2268.7,1.65292006]
[1770000440391,0.13184205,2269.8,2269.0,0.001]
[1770000440693,0.13184205,2269.9,2269.0,0.001]
[1770000441080,1.10141862,2269.8,2269.0,0.001]
[1770000441394,1.23326067,2269.8,2269.0,0.001]
[1770000441596,0.57707772,2269.7,2269.0,0.001]
[1770000442276,0.57707772,2269.7,2268.8,0.001]
[1770000442277,0.13184205,2269.6,2268.8,0.001]
[1770000442476,0.13184205,2269.3,2268.4,0.001]
[1770000442679,0.13184205,2269.1,2268.4,0.001]
[1770000443272,1.10180696,2269.0,2268.4,0.001]
[1770000443602,1.67907331,2269.0,2268.4,0.001]
[1770000444272,0.57726635,2269.0,2268.4,0.001]
[1770000444471,1.10156422,2269.5,2268.4,0.001]
[1770000444672,1.10127307,2270.1,2268.4,0.001]
[1770000444967,1.10127307,2270.1,2268.4,13.05818943]
[1770000445493,1.10127307,2270.1,2268.5,1.10204981]
[1770000445801,0.57232413,2270.2,2268.6,13.98018943]
[1770000446001,1.10117605,2270.3,2268.6,13.98018943]
[1770000446184,1.10115072,2270.4,2268.6,14.11203148]
[1770000446578,1.23299277,2270.4,2268.6,14.11203148]
[1770000446785,0.13184205,2270.3,2268.6,14.11203148]
[1770000447482,0.0011,2270.6,2268.7,14.29098414]
[1770000447681,0.0011,2270.6,2269.3,0.13184205]
[1770000447974,1.10054587,2271.6,2269.8,13.05718943]
[1770000448194,1.10054587,2271.6,2269.9,0.923]
[1770000448403,0.13184205,2271.3,2269.9,0.923]
[1770000448700,1.10054587,2271.6,2269.9,0.923]
[1770000448884,0.57671996,2271.6,2269.9,13.98018943]
[1770000449086,1.10052516,2271.7,2269.9,13.98018943]
[1770000449474,1.10052516,2271.7,2270.0,1.10132158]
[1770000449675,0.0011,2271.8,2270.0,14.29035306]
[1770000449975,0.0011,2271.8,2270.4,13.18903148]
[1770000450169,0.0011,2271.8,2270.4,13.05718943]
[1770000450867,0.0011,2271.8,2270.5,13.18903148]
[1770000451102,1.10156845,2271.8,2270.1,0.13184205]
[1770000451271,1.10156845,2271.8,2270.0,14.29035306]
[1770000451470,1.10156845,2271.8,2270.2,0.923]
[1770000451683,0.0011,2271.8,2270.3,1.10117605]
[1770000451894,0.56458143,2271.8,2270.3,14.15836548]
[1770000452104,9.97552423,2272.7,2270.3,14.15836548]
[1770000452105,1.10087686,2273.2,2271.5,13.05718943]
[1770000452270,1.10087686,2273.2,2271.7,0.13184205]
[1770000452478,14.75130972,2273.2,2271.7,0.13184205]
[1770000452781,14.11547978,2273.1,2271.6,0.923]
[1770000452982,1.52163566,2273.0,2271.6,0.923]
[1770000453178,1.52163566,2273.0,2271.4,0.13184205]
[1770000453380,15.76895749,2273.0,2270.5,13.05718943]
[1770000453570,1.0999648,2272.8,2271.2,1.10073969]
[1770000453980,1.0999648,2272.8,2271.2,1.23258174]
[1770000454196,0.5499824,2272.7,2271.2,1.23258174]
[1770000454401,4.3998592,2272.9,2271.3,0.13184205]
[1770000454402,1.09994637,2272.9,2271.3,0.13184205]
[1770000454773,0.0011,2271.6,2271.4,1.05484205]
[1770000454973,1.09994637,2272.9,2271.4,1.05484205]
[1770000455202,0.0011,2271.8,2271.2,1.23258174]
[1770000455503,0.0011,2271.8,2271.3,0.923]
[1770000455804,0.0011,2271.8,2271.4,1.10064277]
[1770000457172,0.0011,2271.8,2271.4,2.02364277]
[1770000457374,0.0011,2272.8,2271.4,2.02364277]
[1770000457816,1.1000132,2272.7,2271.4,1.10064277]
[1770000457975,1.90475349,2272.6,2271.4,2.02364277]
[1770000459879,1.10011001,2272.5,2271.2,4.4025711]
[1770000460078,1.10011001,2272.5,2271.2,5.3255711]
[1770000460474,14.64647891,2272.5,2271.2,4.4025711]
[1770000460707,13.5463689,2272.1,2270.7,1.10094693]
[1770000460873,13.5463689,2272.1,2270.7,1.10095121]
[1770000461073,13.5463689,2272.1,2270.7,4.40392573]
[1770000461300,13.5463689,2272.1,2270.9,1.10085122]
[1770000461506,13.5463689,2272.1,2270.8,1.10090163]
[1770000461703,2.36691747,2272.0,2270.8,1.10090163]
[1770000461903,1.10040054,2271.9,2270.6,1.10103056]
[1770000462604,14.64676944,2271.9,2270.6,1.10103056]
[1770000462807,1.10040054,2271.9,2270.6,1.10103056]
[1770000463105,1.10040054,2271.9,2270.7,0.13184205]
[1770000463308,4.40102103,2272.3,2270.7,0.13184205]
[1770000463605,4.40017495,2272.7,2271.0,0.13184205]
[1770000463996,0.0011,2272.8,2271.2,13.15220054]
[1770000464184,1.10106934,2272.8,2271.5,0.13184205]
[1770000464377,0.0011,2272.8,2271.6,0.13184205]
[1770000464890,1.10107069,2272.8,2271.3,0.13184205]
[1770000465211,0.55007631,2272.7,2271.5,0.923]
[1770000466020,1.65010007,2272.7,2271.6,1.10054587]
[1770000467024,1.10002376,2272.7,2271.6,1.10054587]
[1770000467612,0.0011,2272.8,2271.6,1.10054587]
[1770000467828,0.0011,2272.8,2271.7,14.0114707]
[1770000468132,0.0011,2273.2,2272.3,0.13184205]
[1770000468346,0.0011,2273.2,2272.4,0.923]
[1770000468551,0.0011,2272.5,2271.8,0.13184205]
[1770000468699,0.13184205,2272.3,2271.6,1.10051889]
[1770000469029,0.13184205,2272.3,2270.6,1.10100785]
[1770000469030,0.13184205,2271.7,2270.6,1.10100785]
[1770000469225,0.13184205,2271.5,2270.7,1.10097766]
[1770000469529,0.13184205,2271.5,2270.3,0.001]
[1770000469530,0.13184205,2271.0,2270.3,0.001]
[1770000469704,0.13184205,2271.0,2270.3,1.10216041]
[1770000469914,0.13184205,2271.0,2270.3,1.65286271]
[1770000470104,1.23267455,2271.1,2270.3,1.65286271]
[1770000470513,1.23267455,2271.1,2270.3,0.5517023]
[1770000470713,1.23267455,2271.1,2270.3,1.65287408]
[1770000470926,1.1008325,2271.1,2270.3,1.10217178]
[1770000471399,1.10062028,2271.5,2270.3,1.10217178]
[1770000471729,1.10056558,2271.6,2270.4,0.923]
[1770000472200,1.10056558,2271.6,2270.5,1.10107905]
[1770000472401,0.13184205,2271.5,2270.5,1.10107905]
[1770000472631,0.72166365,2271.5,2270.5,1.10107905]
[1770000472930,0.5898216,2271.5,2270.5,1.10107905]
[1770000473104,0.72166365,2271.5,2270.5,1.10107905]
[1770000473304,0.13184205,2271.4,2270.5,1.10107905]
[1770000473499,17.37843678,2271.7,2270.4,1.10112246]
[1770000473500,1.10051146,2271.7,2270.4,1.10112246]
[1770000473702,1.78260363,2271.7,2270.4,1.10112246]
[1770000473931,1.10047782,2271.8,2270.4,1.10112246]
[1770000474130,1.10059432,2271.5,2270.4,1.10112246]
[1770000474431,1.23213078,2272.2,2270.4,1.10112246]
[1770000474638,0.13184205,2272.0,2270.4,1.10112246]
[1770000474810,0.13184205,2271.6,2270.4,1.10112246]
[1770000475003,0.13184205,2271.5,2270.4,1.65178573]
[1770000475330,0.13184205,2271.6,2270.4,1.65178573]
[1770000475634,0.13184205,2271.7,2270.4,1.65178573]
[1770000476349,1.10035211,2272.0,2270.4,1.65178573]
[1770000476507,13.94482255,2272.0,2270.4,1.65178573]
[1770000476836,0.13184205,2271.6,2270.4,1.10112227]
[1770000477141,0.13184205,2271.6,2270.3,4.40551021]
[1770000477142,0.13184205,2271.4,2270.3,0.001]
[1770000477436,0.13184205,2270.8,2270.3,0.001]
[1770000477603,0.13184205,2270.5,2268.9,0.001]
[1770000477807,0.13184205,2270.5,2269.3,1.10164921]
[1770000477808,0.13184205,2270.1,2269.3,1.10164921]
[1770000478002,0.13184205,2270.5,2269.3,1.65250456]
[1770000478211,0.13184205,2270.4,2269.3,1.65250456]
[1770000478414,4.536117,2270.6,2269.3,1.65250456]
[1770000478832,1.23287261,2270.6,2269.3,1.65250456]
[1770000479031,1.10103056,2270.6,2269.3,1.65250456]
[1770000479230,3.09419051,2270.6,2269.4,0.44669137]
[1770000479922,0.13184205,2270.8,2269.4,0.44669137]
[1770000480106,0.13184205,2270.6,2269.4,0.44669137]
[1770000480306,1.10112755,2270.4,2269.5,2.02456422]
[1770000480501,1.2329696,2270.4,2269.5,2.02456422]
[1770000480917,1.2329696,2270.4,2269.5,1.10156422]
[1770000481114,0.59009991,2270.4,2269.5,1.10156422]
[1770000481318,1.10105681,2270.6,2269.5,1.10156422]
[1770000481816,0.13184205,2270.7,2269.5,1.10156422]
[1770000482137,9.94754423,2271.6,2269.5,15.11303492]
[1770000482138,1.23248482,2271.4,2269.5,15.11303492]
[1770000482442,1.83460583,2271.9,2269.9,14.0114707]
[1770000482736,0.13184205,2272.0,2270.1,14.0114707]
[1770000482952,0.13184205,2271.3,2270.0,0.55085535]
[1770000483115,0.13294205,2271.1,2270.0,0.923]
[1770000483306,0.0011,2271.1,2270.0,0.923]
[1770000483742,0.0011,2271.1,2270.1,0.923]
[1770000483743,0.13184205,2271.0,2270.1,0.923]
[1770000483952,0.0011,2271.1,2270.1,0.923]
[1770000484443,0.0011,2271.1,2270.2,0.923]
[1770000485015,1.2320905,2272.3,2270.2,14.80262865]
[1770000485243,0.13184205,2272.2,2270.4,13.98202865]
[1770000485866,0.0011,2272.5,2270.7,14.0114707]
[1770000486147,0.0011,2272.5,2270.6,13.98202865]
[1770000486356,0.0011,2272.5,2270.9,14.98051376]
[1770000486643,0.0011,2272.5,2271.0,14.1138707]
[1770000486861,0.0011,2272.5,2271.2,14.0114707]
[1770000487021,0.0011,2272.5,2271.2,13.87962865]
[1770000487438,0.0011,2272.7,2271.5,13.87962865]
[1770000487750,0.0011,2272.7,2271.6,0.923]
[1770000488060,0.0011,2272.7,2271.3,0.923]
[1770000488061,0.13184205,2272.3,2271.3,0.923]
[1770000488258,1.10020683,2272.3,2270.7,4.40354044]
[1770000488462,0.51133097,2272.6,2271.4,0.13184205]
[1770000488759,0.51133097,2272.6,2271.6,0.13184205]
[1770000488911,0.0011,2272.7,2271.7,0.13184205]
[1770000489120,1.10111424,2272.7,2271.7,0.13184205]
[1770000489314,14.14895235,2272.7,2271.3,0.13184205]
[1770000489553,13.04783811,2272.5,2271.4,0.13184205]
[1770000489738,1.85490052,2272.6,2271.7,0.13184205]
[1770000489919,1.10111424,2272.7,2271.8,0.13184205]
[1770000490223,1.10111424,2272.7,2271.7,0.13184205]
[1770000490445,0.0011,2272.7,2271.7,1.23232154]
[1770000490949,0.0011,2272.7,2271.8,0.13184205]
[1770000491238,0.0011,2272.7,2271.7,1.10049358]
[1770000491430,0.0011,2272.7,2271.7,1.10048945]
[1770000491617,0.0011,2272.7,2271.8,0.13184205]
[1770000491822,0.0011,2272.7,2271.9,0.13184205]
[1770000492042,0.0011,2272.7,2272.1,0.13184205]
[1770000492258,0.0011,2272.7,2271.7,1.54757907]
[1770000492412,0.0011,2272.7,2272.3,0.13184205]
[1770000492615,0.0011,2273.2,2272.6,0.13184205]
[1770000492843,0.0011,2273.2,2272.7,0.13184205]
[1770000493142,0.0011,2273.2,2272.4,0.13184205]
[1770000493441,0.0011,2273.2,2272.1,1.1002696]
[1770000493641,13.04893811,2273.2,2272.1,1.1002696]
[1770000493938,13.04893811,2273.2,2271.8,1.10041536]
[1770000493939,14.35273192,2273.1,2271.8,1.10041536]
[1770000494138,14.35273192,2273.1,2271.7,0.923]
[1770000494348,0.0011,2273.2,2271.7,0.923]
[1770000494349,0.0011,2273.2,2272.2,0.13184205]
[1770000494525,0.0011,2273.2,2272.4,0.13184205]
[1770000494914,0.0011,2273.2,2272.6,0.13184205]
[1770000495137,0.0011,2273.2,2272.2,0.13184205]
[1770000495538,0.0011,2273.2,2272.3,0.13184205]
[1770000495741,0.0011,2273.2,2272.2,0.13184205]
[1770000496058,14.14871088,2273.2,2272.1,1.10027344]
[1770000496560,14.14871088,2273.2,2271.9,1.23224259]
[1770000497056,14.14871088,2273.2,2271.8,1.10044839]
[1770000497225,13.04783811,2273.1,2271.8,1.10044839]
[1770000497554,13.04783811,2272.9,2271.8,1.10044839]
[1770000498432,2.97896131,2273.0,2271.9,0.13184205]
[1770000498753,1.10099022,2273.0,2271.9,0.13184205]
[1770000499055,1.10099022,2273.0,2271.8,1.23229044]
[1770000499725,1.10099022,2273.0,2271.9,0.13184205]
[1770000499921,14.14882833,2273.0,2271.8,1.10044839]
[1770000500127,14.14882833,2273.0,2271.6,1.10052045]
[1770000500326,1.1000616,2272.6,2271.4,1.10064277]
[1770000500643,1.0999648,2272.8,2271.5,0.13184205]
[1770000500844,1.0999648,2272.8,2271.6,0.13184205]
[1770000501146,14.14780291,2272.8,2271.5,0.13184205]
[1770000501323,2.08654787,2272.7,2271.6,0.13184205]
[1770000502533,1.1000616,2272.6,2271.7,1.10049742]
[1770000502854,14.14789971,2272.6,2271.7,1.10049742]
[1770000504059,13.04783811,2272.6,2271.7,1.10049742]
[1770000504667,1.10011001,2272.5,2271.5,1.10059432]
[1770000504964,3.16359835,2272.5,2271.5,1.10059432]
[1770000505163,2.06348834,2272.5,2271.5,1.10059432]
[1770000505333,2.02199246,2272.8,2271.8,0.13184205]
[1770000505538,2.02199246,2272.8,2271.9,0.13184205]
[1770000505766,0.0011,2273.0,2272.0,0.13184205]
[1770000505767,1.10098479,2273.0,2272.0,0.13184205]
[1770000505942,0.0011,2273.0,2272.2,0.13184205]
[1770000506150,0.0011,2273.0,2272.3,0.13184205]
[1770000506767,0.0011,2273.0,2272.3,1.23204888]
[1770000508047,0.0011,2273.0,2272.4,0.13184205]
[1770000508861,0.0011,2273.0,2272.3,1.23204888]
[1770000509263,0.0011,2273.0,2272.3,15.73204888]
[1770000509462,0.0011,2273.0,2272.3,1.10020683]
[1770000509638,0.0011,2273.0,2272.2,1.10022844]
[1770000509639,13.04893811,2273.0,2272.2,1.10022844]
[1770000509840,1.30489381,2272.9,2272.3,1.10017681]
[1770000510074,0.0011,2273.0,2272.3,1.10017681]
[1770000510447,0.0011,2273.0,2272.1,0.001]
[1770000510758,0.0011,2272.8,2272.1,0.001]
[1770000511356,0.0011,2272.8,2271.9,1.10038562]
[1770000512562,13.04893811,2272.8,2271.9,1.10038562]
[1770000512760,1.87798545,2272.7,2271.9,1.10038562]
[1770000513072,1.1000616,2272.6,2271.5,0.922]
[1770000513662,13.04783811,2272.5,2271.1,4.40301649]
[1770000513859,13.04783811,2272.2,2270.8,4.40367902]
[1770000514058,2.31850161,2272.4,2270.8,4.40372791]
[1770000514059,14.81572192,2272.1,2270.8,4.40372791]
[1770000514290,14.81572192,2272.1,2271.2,1.10070391]
[1770000514577,19.44672192,2272.1,2270.4,0.13284205]
[1770000514800,13.04783811,2271.9,2271.0,1.10083594]
[1770000514952,1.86074996,2271.8,2270.9,1.10084818]
[1770000515154,1.10049742,2271.7,2270.6,1.10103056]
[1770000516581,14.14833553,2271.7,2270.6,1.10103056]
[1770000517282,14.14833553,2271.7,2270.5,4.40431074]
[1770000517479,1.10049742,2271.7,2270.5,4.53615279]
[1770000517783,1.83681009,2271.7,2270.6,0.13184205]
[1770000518684,1.87798545,2272.7,2271.2,0.13184205]
[1770000518981,1.10107209,2272.8,2271.4,0.13184205]
[1770000519281,1.10107209,2272.8,2271.6,0.13184205]
[1770000519595,0.0011,2272.8,2271.9,0.13184205]
[1770000519754,0.0011,2273.0,2272.3,0.13184205]
[1770000519954,0.0011,2273.4,2272.7,0.13184205]
[1770000520172,0.0011,2273.7,2272.9,0.13184205]
[1770000520487,14.26929594,2273.7,2271.7,12.9781534]
[1770000520656,13.16866328,2273.0,2271.6,1.10054587]
[1770000521361,1.09977124,2273.2,2271.6,1.10054587]
[1770000521879,14.26843452,2273.2,2271.6,1.10054587]
[1770000522083,13.16866328,2273.2,2271.6,1.10054587]
[1770000522254,1.09970601,2273.4,2271.6,14.07869927]
[1770000522455,0.5498404,2273.3,2271.6,14.07869927]
[1770000522660,1.09964912,2273.5,2271.6,14.07869927]
[1770000522860,13.16866328,2273.4,2271.7,0.922]
[1770000523261,13.16866328,2273.4,2272.4,0.13184205]
[1770000523456,1.09972286,2273.3,2272.6,0.13184205]
[1770000523968,0.0011,2273.1,2272.6,0.13184205]
[1770000524365,0.0011,2273.1,2272.5,0.13184205]
[1770000524558,0.0011,2273.1,2272.7,0.13184205]
[1770000524756,0.0011,2273.3,2273.0,0.13184205]
[1770000524959,0.0011,2273.7,2273.2,0.13184205]
[1770000525260,1.10048969,2274.0,2273.6,0.13184205]
[1770000525261,0.0011,2274.0,2273.6,0.13184205]
[1770000525456,0.0011,2274.2,2273.9,1.09943269]
[1770000525695,0.0011,2274.2,2274.1,0.13184205]
[1770000525868,0.0011,2274.2,2274.0,0.13184205]
[1770000526388,0.0011,2274.2,2273.7,0.13184205]
[1770000526588,0.0011,2274.2,2273.7,1.23136323]
[1770000526791,0.0011,2274.2,2273.9,0.13184205]
[1770000526961,0.0011,2274.2,2273.7,1.23136836]
[1770000527387,0.0011,2274.4,2274.2,1.09928766]
[1770000527591,1.0988045,2275.2,2274.3,0.13184205]
[1770000527884,1.41019957,2275.3,2274.3,0.13184205]
[1770000528060,14.70972532,2275.3,2274.1,1.23117633]
[1770000528261,1.91047502,2275.2,2274.3,0.13184205]
[1770000528459,14.22152575,2275.1,2273.8,0.13184205]
[1770000528786,14.22152575,2275.1,2273.6,1.23140954]
[1770000529003,13.29952575,2274.8,2273.5,1.23144415]
[1770000529163,13.29952575,2274.8,2273.7,0.13184205]
[1770000529359,1.09904602,2274.7,2273.6,0.13184205]
[1770000529554,1.09904602,2274.7,2273.7,0.13184205]
[1770000529755,1.87947559,2274.6,2273.7,0.13184205]